bitfinex/quotes_BTCUSD_20251113
["timestamp","ask_amount","ask_price","bid_price","bid_amount"]
[1763047886374,0.13816915,102180.0,102170.0,0.19630432]
[1763047886594,0.02,102180.0,102170.0,0.33344432]
[1763047886820,0.02,102180.0,102170.0,0.9598276]
[1763047887071,0.21941508,102200.0,102170.0,0.34323192]
[1763047887072,0.02978473,102200.0,102170.0,0.34323192]
[1763047887281,0.012,102180.0,102170.0,0.34267977]
[1763047887501,0.014,102180.0,102170.0,0.96906305]
[1763047887736,0.01,102180.0,102170.0,0.96906305]
[1763047887974,0.01,102180.0,102170.0,0.97106305]
[1763047888167,0.01,102180.0,102170.0,0.97006305]
[1763047888588,0.20573302,102180.0,102170.0,0.33489217]
[1763047888791,0.20573302,102180.0,102170.0,0.002]
[1763047888792,0.23503302,102180.0,102170.0,0.002]
[1763047888998,0.23503302,102180.0,102170.0,0.004]
[1763047889215,0.34250217,102180.0,102170.0,0.004]
[1763047889399,0.32390217,102180.0,102170.0,0.004]
[1763047889652,0.30390217,102180.0,102170.0,0.004]
[1763047889867,0.35250217,102180.0,102170.0,0.004]
[1763047890070,0.35250217,102180.0,102170.0,0.002]
[1763047890279,0.19575217,102170.0,102160.0,0.23662133]
[1763047890493,0.31292848,102210.0,102180.0,0.19572397]
[1763047890759,0.1957032,102200.0,102190.0,0.19571386]
[1763047890998,0.31384471,102210.0,102200.0,0.23654471]
[1763047891239,0.32384471,102210.0,102200.0,0.23654471]
[1763047891533,0.03,102210.0,102200.0,0.36772471]
[1763047891765,0.032,102210.0,102200.0,0.36772471]
[1763047892019,0.01,102210.0,102200.0,0.99410799]
[1763047892704,0.20567556,102210.0,102200.0,0.28981471]
[1763047892928,0.01,102210.0,102200.0,0.36772471]
[1763047893219,0.01,102210.0,102200.0,0.99410799]
[1763047893459,0.20567556,102210.0,102200.0,0.36772471]
[1763047893711,0.20667556,102210.0,102200.0,0.36772471]
[1763047893960,0.21569471,102200.0,102190.0,0.55956386]
[1763047894213,0.02,102200.0,102190.0,1.18594714]
[1763047894424,0.02,102200.0,102190.0,0.55956386]
[1763047894635,0.02,102200.0,102190.0,0.69074386]
[1763047894845,0.02,102200.0,102190.0,1.31712714]
[1763047895575,0.02,102200.0,102190.0,0.69174386]
[1763047895768,0.02,102200.0,102190.0,1.31812714]
[1763047896919,0.02,102200.0,102190.0,1.31912714]
[1763047897097,0.23565804,102220.0,102210.0,0.19567556]
[1763047897326,0.05821537,102220.0,102210.0,0.24894556]
[1763047897527,0.25387179,102220.0,102210.0,0.24894556]
[1763047897728,0.25387179,102220.0,102210.0,0.19567556]
[1763047897908,0.25387179,102220.0,102200.0,0.2735875]
[1763047898065,0.04,102210.0,102200.0,0.2735875]
[1763047898274,0.23567556,102210.0,102200.0,0.19569471]
[1763047898475,0.21569471,102200.0,102190.0,0.64725955]
[1763047898661,0.02,102200.0,102190.0,0.64725955]
[1763047898865,0.02,102200.0,102190.0,1.32691283]
[1763047899078,0.02,102200.0,102190.0,1.37033157]
[1763047899976,0.003,102220.0,102210.0,0.19567556]
[1763047900304,0.02,102220.0,102210.0,0.28979556]
[1763047900507,0.03825617,102220.0,102210.0,0.99408884]
[1763047900711,0.02,102220.0,102210.0,0.4111243]
[1763047900910,0.23492814,102220.0,102210.0,0.09412]
[1763047901142,0.23392814,102220.0,102210.0,0.28979556]
[1763047901339,0.03927172,102220.0,102210.0,0.28979556]
[1763047901717,0.03827172,102220.0,102210.0,0.36770556]
[1763047902191,0.03827172,102220.0,102210.0,0.37070556]
[1763047902363,0.02,102220.0,102210.0,0.37070556]
[1763047902562,0.21565642,102220.0,102210.0,0.37070556]
[1763047903318,0.02,102220.0,102210.0,0.36770556]
[1763047903543,0.22594642,102220.0,102200.0,0.20569004]
[1763047903741,0.21567556,102210.0,102200.0,0.20569004]
[1763047903949,0.24322707,102210.0,102200.0,0.01]
[1763047904151,2.77070568,102210.0,102200.0,0.01]
[1763047904424,2.80395336,102210.0,102200.0,0.01]
[1763047904659,0.1957905,102150.0,102120.0,0.06973434]
[1763047904849,0.20582884,102130.0,102120.0,0.00028]
[1763047905054,0.03,102130.0,102120.0,0.19612802]
[1763047905591,0.01,102130.0,102120.0,0.32730802]
[1763047906794,0.70401745,102130.0,102120.0,0.00028]
[1763047907035,0.25320219,102130.0,102120.0,0.19612802]
[1763047907247,0.24407774,102130.0,102120.0,0.00028]
[1763047907929,0.24407774,102130.0,102120.0,0.00428]
[1763047908138,0.24407774,102130.0,102120.0,0.00228]
[1763047908397,0.24407774,102130.0,102120.0,0.00028]
[1763047908637,0.84954659,102130.0,102120.0,0.00128]
[1763047908885,2.84954659,102130.0,102120.0,0.00328]
[1763047909109,2.34135798,102130.0,102120.0,0.00328]
[1763047909804,2.34135798,102130.0,102120.0,0.00228]
[1763047910016,0.34135798,102130.0,102120.0,0.19912802]
[1763047910226,0.34135798,102130.0,102120.0,0.19812802]
[1763047910663,0.021,102130.0,102120.0,0.32930802]
[1763047910883,0.011,102130.0,102120.0,0.32730802]
[1763047911079,0.011,102130.0,102120.0,0.32830802]
[1763047911705,0.011,102130.0,102120.0,0.32730802]
[1763047912041,0.012,102130.0,102120.0,0.82549663]
[1763047912462,0.012,102130.0,102120.0,1.19191537]
[1763047913356,0.011,102130.0,102120.0,1.19191537]
[1763047913801,0.021,102130.0,102120.0,1.19191537]
[1763047914087,0.21577137,102160.0,102140.0,0.19580967]
[1763047914416,0.02,102140.0,102130.0,0.35799055]
[1763047914737,0.04,102160.0,102150.0,0.1957905]
[1763047914956,0.02,102160.0,102150.0,0.74724911]
[1763047915165,0.02,102160.0,102150.0,0.86857785]
[1763047915385,0.69395867,102200.0,102160.0,0.19577133]
[1763047915386,0.01,102170.0,102160.0,0.19577133]
[1763047915612,0.01,102170.0,102160.0,0.77186994]
[1763047915840,0.01,102170.0,102160.0,0.86598994]
[1763047916978,0.01,102170.0,102160.0,1.18898994]
[1763047917184,0.01,102170.0,102160.0,0.69080133]
[1763047917408,0.01,102170.0,102160.0,1.18898994]
[1763047917814,0.01,102170.0,102160.0,1.18998994]
[1763047918258,0.01,102170.0,102160.0,0.73622007]
[1763047918465,0.02,102180.0,102170.0,0.19572467]
[1763047918686,0.02,102180.0,102170.0,0.27363467]
[1763047918921,0.21573302,102180.0,102170.0,0.32690467]
[1763047919151,0.02,102180.0,102170.0,0.32690467]
[1763047919625,0.02,102170.0,102160.0,0.56061964]
[1763047919839,0.02,102170.0,102160.0,1.10222699]
[1763047920045,0.02,102170.0,102160.0,1.15483699]
[1763047920262,0.02,102170.0,102160.0,0.73438838]
[1763047920479,0.20558444,102210.0,102190.0,0.19571385]
[1763047920713,0.02,102200.0,102190.0,0.23445385]
[1763047920921,0.23569471,102200.0,102190.0,0.03874]
[1763047921126,0.23569471,102200.0,102190.0,0.23445386]
[1763047921343,2.0,102180.0,102160.0,0.001]
[1763047921549,0.19580967,102140.0,102130.0,0.11859]
[1763047921759,0.21582884,102130.0,102120.0,0.23486684]
[1763047922003,0.02,102130.0,102120.0,0.81079663]
[1763047922207,0.02,102140.0,102130.0,0.19581689]
[1763047922416,0.02,102140.0,102130.0,0.8243555]
[1763047922573,0.02,102140.0,102130.0,0.83414694]
[1763047922779,0.80191785,102160.0,102130.0,0.24843884]
[1763047923011,0.21580967,102140.0,102130.0,0.24843884]
[1763047923215,0.23580967,102140.0,102120.0,0.24466042]
[1763047923391,0.04,102140.0,102130.0,0.19582884]
[1763047923608,0.23580967,102140.0,102130.0,0.19682884]
[1763047923811,0.04,102140.0,102130.0,0.001]
[1763047924012,0.04,102140.0,102130.0,0.32717884]
[1763047924198,0.04,102140.0,102130.0,0.32617884]
[1763047924402,0.23580967,102140.0,102130.0,0.24843884]
[1763047924639,0.23580967,102140.0,102130.0,0.19582884]
[1763047924847,0.21580967,102140.0,102120.0,0.32240042]
[1763047925049,0.02,102130.0,102120.0,0.31260802]
[1763047925191,0.02,102130.0,102120.0,0.73305663]
[1763047925546,0.02,102130.0,102120.0,0.78566663]
[1763047925842,0.02,102130.0,102120.0,0.86159663]
[1763047926717,0.02,102130.0,102120.0,0.00028]
[1763047926718,0.21582884,102130.0,102120.0,0.00028]
[1763047926933,0.26447031,102130.0,102120.0,0.00028]
[1763047927145,0.53853976,102170.0,102140.0,0.19579068]
[1763047927146,0.0097876,102170.0,102140.0,0.19579068]
[1763047927362,0.02,102150.0,102140.0,0.19579068]
[1763047928232,2.01,102170.0,102160.0,0.19575332]
[1763047928464,0.01,102170.0,102160.0,0.19575332]
[1763047928675,0.323,102180.0,102170.0,0.19575217]
[1763047928894,0.01,102180.0,102170.0,0.74346078]
[1763047929113,0.20570178,102200.0,102190.0,0.19571226]
[1763047929325,0.01,102200.0,102190.0,0.19571226]
[1763047929567,0.21569471,102200.0,102190.0,0.23359226]
[1763047929771,0.02,102200.0,102190.0,0.23359226]
[1763047930211,0.21569471,102200.0,102190.0,0.23359386]
[1763047930434,0.02,102200.0,102190.0,0.23359386]
[1763047930645,0.19571386,102190.0,102160.0,0.31935188]
[1763047930851,0.19571386,102190.0,102180.0,0.19573302]
[1763047931065,0.32464859,102200.0,102180.0,0.24525302]
[1763047931245,0.021,102200.0,102190.0,0.23359386]
[1763047931494,0.021,102200.0,102190.0,0.78130247]
[1763047931495,0.19669471,102200.0,102190.0,0.78130247]
[1763047931665,0.19769471,102200.0,102190.0,0.28311386]
[1763047931926,0.19769471,102200.0,102180.0,0.19573283]
[1763047932203,0.19571423,102190.0,102180.0,0.19573134]
[1763047932430,0.19571423,102190.0,102170.0,0.77965072]
[1763047932632,0.21571386,102190.0,102180.0,0.19573302]
[1763047932837,0.21571386,102190.0,102170.0,0.60446684]
[1763047933053,0.21571386,102190.0,102170.0,0.60471424]
[1763047933266,0.21571386,102190.0,102170.0,1.10290285]
[1763047933526,0.19573302,102180.0,102170.0,1.09311525]
[1763047933741,0.21573302,102180.0,102170.0,0.0002474]
[1763047933950,0.21573302,102180.0,102170.0,0.19599957]
[1763047934572,0.21573302,102180.0,102170.0,0.0002474]
[1763047934774,0.21573302,102180.0,102170.0,0.19699957]
[1763047935206,0.21571386,102190.0,102180.0,0.19573302]
[1763047935398,0.21571386,102190.0,102180.0,0.32118302]
[1763047935632,0.19571386,102190.0,102180.0,0.24525302]
[1763047935846,0.19571386,102190.0,102180.0,0.19573302]
[1763047936080,0.32364859,102200.0,102190.0,0.19571386]
[1763047936289,0.34187585,102200.0,102190.0,0.19571386]
[1763047936714,0.19571386,102190.0,102180.0,0.19573302]
[1763047936915,0.12795388,102200.0,102190.0,0.19571386]
[1763047937167,0.32367997,102200.0,102190.0,0.19571386]
[1763047937561,0.21567556,102210.0,102200.0,0.19569471]
[1763047937564,0.02,102210.0,102200.0,0.19569471]
[1763047937941,0.21567556,102210.0,102190.0,0.80771247]
[1763047938150,0.21567556,102210.0,102200.0,0.19569471]
[1763047938410,0.02,102210.0,102200.0,0.19569471]
[1763047938618,0.19569471,102200.0,102190.0,0.03788]
[1763047938845,0.21569471,102200.0,102190.0,0.23359386]
[1763047939316,0.21567617,102210.0,102200.0,0.19569471]
[1763047939534,0.21667617,102210.0,102200.0,0.19569471]
[1763047939750,0.02,102210.0,102200.0,0.19569471]
[1763047940002,0.20552586,102220.0,102200.0,0.32114471]
[1763047940234,0.25287221,102220.0,102200.0,0.32114471]
[1763047940456,0.19567556,102210.0,102200.0,0.24521471]
[1763047940666,0.22552586,102220.0,102210.0,0.19567556]
[1763047940887,0.25288016,102220.0,102200.0,0.24521471]
[1763047941104,0.21567685,102210.0,102190.0,0.5565924]
[1763047941287,0.21567685,102210.0,102200.0,0.19569471]
[1763047941546,0.02,102210.0,102200.0,0.32114471]
[1763047941777,0.002,102220.0,102210.0,0.19567556]
[1763047941992,0.002,102220.0,102200.0,0.19569471]
[1763047942239,0.19568127,102210.0,102190.0,0.56637809]
[1763047942444,0.21568127,102210.0,102190.0,0.64230809]
[1763047942653,0.02,102210.0,102200.0,0.04952]
[1763047942898,0.21565654,102220.0,102210.0,0.19567556]
[1763047943128,0.03823911,102220.0,102210.0,0.24519556]
[1763047943306,0.20541953,102230.0,102220.0,0.19565642]
[1763047943307,0.22541953,102230.0,102220.0,0.19565642]
[1763047943545,0.25277509,102230.0,102220.0,0.03788]
[1763047944032,0.04735556,102230.0,102220.0,0.23353642]
[1763047944254,0.02735637,102230.0,102220.0,0.35898642]
[1763047944462,0.3137873,102240.0,102230.0,0.19563728]
[1763047944684,0.3137873,102240.0,102190.0,0.23359147]
[1763047944685,0.19568442,102210.0,102190.0,0.23359147]
[1763047944903,0.19569471,102200.0,102180.0,0.28144967]
[1763047945127,0.21569471,102200.0,102180.0,0.28144967]
[1763047945368,0.21569471,102200.0,102190.0,0.03788]
[1763047946013,0.19573302,102180.0,102170.0,0.0381274]
[1763047946226,0.19573302,102180.0,102170.0,0.23387957]
[1763047946450,0.21571386,102190.0,102180.0,0.19573302]
[1763047946712,0.02,102190.0,102180.0,0.19573302]
[1763047946905,0.19571386,102190.0,102180.0,0.24525302]
[1763047947107,0.02,102200.0,102190.0,0.19571386]
[1763047947323,0.19569471,102200.0,102180.0,0.81937163]
[1763047947530,0.21569471,102200.0,102190.0,0.19571386]
[1763047947748,0.02,102200.0,102190.0,0.19571386]
[1763047947960,0.21569471,102200.0,102190.0,0.19571386]
[1763047948173,0.02,102200.0,102190.0,0.24523386]
[1763047948394,0.02,102220.0,102210.0,0.19567556]
[1763047948601,0.31358829,102230.0,102210.0,0.24519556]
[1763047948848,0.34093675,102230.0,102210.0,0.24519556]
[1763047949075,0.14551761,102230.0,102220.0,0.23353642]
[1763047949279,0.09816915,102230.0,102220.0,0.28305642]
[1763047949490,0.32181313,102230.0,102200.0,0.49818861]
[1763047949692,0.19569471,102200.0,102170.0,0.31959717]
[1763047949902,0.21571589,102190.0,102170.0,0.24366717]
[1763047950123,0.21571729,102190.0,102170.0,0.24366717]
[1763047950400,0.19573302,102180.0,102170.0,0.23387875]
[1763047950689,0.21571729,102190.0,102170.0,0.23387957]
[1763047950894,0.19573302,102180.0,102170.0,0.23387957]
[1763047951111,0.19573302,102180.0,102170.0,0.23487957]
[1763047951546,0.19573302,102180.0,102170.0,0.0391274]
[1763047951767,0.21573302,102180.0,102170.0,0.0381274]
[1763047952206,0.21573302,102180.0,102170.0,0.0391274]
[1763047952422,0.19571386,102190.0,102180.0,0.19572512]
[1763047952674,0.24307497,102190.0,102180.0,0.19572512]
[1763047952890,0.2339546,102190.0,102180.0,0.19573302]
[1763047953104,0.02,102190.0,102180.0,0.19573302]
[1763047953325,0.21571386,102190.0,102180.0,0.19573302]
[1763047953545,0.21571386,102190.0,102180.0,0.24486302]
[1763047954205,0.21571386,102190.0,102180.0,0.24586302]
[1763047954415,0.23396848,102190.0,102180.0,0.001]
[1763047954665,0.73215709,102190.0,102180.0,0.002]
[1763047954881,0.74128444,102190.0,102180.0,0.002]
[1763047955096,3.06428444,102190.0,102180.0,0.002]
[1763047955314,2.56609583,102190.0,102180.0,0.002]
[1763047955731,3.06428444,102190.0,102180.0,0.002]
[1763047955963,3.06428444,102190.0,102180.0,0.001]
[1763047956393,2.53873302,102180.0,102170.0,0.0002474]
[1763047956564,1.0643036,102180.0,102170.0,0.0002474]
[1763047956990,0.24311499,102180.0,102170.0,0.19599957]
[1763047957309,0.7606944,102180.0,102170.0,0.0002474]
[1763047957537,0.26250579,102180.0,102170.0,0.19599957]
[1763047957766,0.02738197,102180.0,102170.0,0.81677818]
[1763047957981,0.01,102180.0,102170.0,1.13977818]
[1763047958201,0.013,102180.0,102170.0,1.13977818]
[1763047958421,0.011,102180.0,102170.0,0.64158957]
[1763047958623,0.001,102180.0,102170.0,0.56812957]
[1763047958840,0.0223908,102180.0,102170.0,0.56812957]
[1763047959046,0.0403908,102180.0,102170.0,0.56812957]
[1763047959633,0.0193908,102180.0,102170.0,0.64158957]
[1763047960049,0.0193908,102180.0,102170.0,0.56912957]
[1763047960353,0.0193908,102180.0,102170.0,0.57012957]
[1763047960559,0.0193908,102180.0,102170.0,0.64358957]
[1763047960786,0.0193908,102180.0,102170.0,0.64258957]
[1763047960995,0.0393908,102180.0,102170.0,0.0012474]
[1763047961200,0.0393908,102180.0,102170.0,0.19599957]
[1763047961738,0.0393908,102180.0,102170.0,0.31858957]
[1763047961739,0.0193908,102180.0,102170.0,0.31858957]
[1763047963706,0.21512382,102180.0,102170.0,0.24512957]
[1763047963916,0.0393908,102180.0,102170.0,0.0002474]
[1763047964121,0.23512382,102180.0,102170.0,0.19599957]
[1763047964345,0.23512382,102180.0,102170.0,0.0002474]
[1763047964731,0.26255874,102180.0,102170.0,0.0002474]
[1763047965553,1.21256543,102180.0,102170.0,0.0002474]
[1763047966174,0.58555874,102180.0,102170.0,0.0002474]
[1763047966387,0.58655874,102180.0,102170.0,0.0002474]
[1763047967240,0.58755874,102180.0,102170.0,0.0002474]
[1763047967375,0.26455874,102180.0,102170.0,0.0002474]
[1763047968775,0.06882572,102180.0,102170.0,0.23642957]
[1763047968986,0.05968058,102180.0,102170.0,0.23642957]
[1763047969202,0.0413908,102180.0,102170.0,0.23642957]
[1763047969830,0.21712382,102180.0,102170.0,0.0002474]
[1763047970237,0.21712382,102180.0,102170.0,0.19599957]
[1763047970451,0.21712382,102180.0,102170.0,0.23642957]
[1763047970855,0.0213908,102180.0,102170.0,0.35901957]
[1763047971057,0.21712382,102180.0,102170.0,0.0898074]
[1763047971257,0.23712382,102180.0,102170.0,0.23642957]
[1763047971670,0.0213908,102180.0,102170.0,0.35901957]
[1763047971884,0.002,102180.0,102170.0,1.352445]
[1763047972098,0.002,102180.0,102170.0,0.72543831]
[1763047972266,0.002,102180.0,102170.0,1.352445]
[1763047972467,0.0203908,102180.0,102170.0,1.352445]
[1763047973065,0.0213908,102180.0,102170.0,1.352445]
[1763047973292,0.0213908,102180.0,102170.0,0.72543831]
[1763047973440,0.21512382,102180.0,102170.0,0.68201957]
[1763047973671,0.21512382,102180.0,102170.0,0.68301957]
[1763047973879,0.21612382,102180.0,102170.0,0.56042957]
[1763047974085,0.0193908,102180.0,102170.0,0.60955957]
[1763047974339,0.21512382,102180.0,102170.0,0.0908074]
[1763047974553,0.21512382,102180.0,102170.0,0.23842957]
[1763047974752,0.23512382,102180.0,102170.0,0.23742957]
[1763047975174,0.23512382,102180.0,102170.0,0.23642957]
[1763047976010,0.23512382,102180.0,102170.0,0.0002474]
[1763047976223,0.23512382,102180.0,102170.0,0.19599957]
[1763047976653,0.23512382,102180.0,102170.0,0.0002474]
[1763047977083,0.23612382,102180.0,102170.0,0.0002474]
[1763047977295,0.23712382,102180.0,102170.0,0.19599957]
[1763047977935,0.86413051,102180.0,102170.0,0.0002474]
[1763047978404,0.23712382,102180.0,102170.0,0.0002474]
[1763047979248,0.26457698,102180.0,102170.0,0.0002474]
[1763047980528,1.21458367,102180.0,102170.0,0.0002474]
[1763047980963,3.25800241,102180.0,102170.0,0.0002474]
[1763047981183,0.21521964,102130.0,102120.0,0.00028]
[1763047981427,0.58570009,102130.0,102120.0,0.00028]
[1763047981650,3.21270678,102130.0,102120.0,0.00028]
[1763047982067,3.26613564,102130.0,102120.0,0.00028]
[1763047982275,3.26947337,102130.0,102120.0,0.00028]
[1763047982563,3.3420002,102130.0,102120.0,1e-08]
[1763047982978,3.29770906,102130.0,102120.0,1e-08]
[1763047983183,3.29970906,102130.0,102120.0,1e-08]
[1763047983628,2.64446668,102130.0,102120.0,1e-08]
[1763047983824,3.27147337,102130.0,102120.0,1e-08]
[1763047984039,3.27347337,102130.0,102120.0,1e-08]
[1763047984215,3.27147337,102130.0,102120.0,1e-08]
[1763047984417,2.19590557,102090.0,102080.0,0.002]
[1763047984649,3.26791592,102090.0,102080.0,0.002]
[1763047985076,0.02748045,102090.0,102080.0,0.002]
[1763047985277,0.02748045,102090.0,102080.0,0.19792476]
[1763047985278,0.02,102090.0,102080.0,0.19792476]
[1763047985482,0.01,102090.0,102080.0,0.19792476]
[1763047985682,0.03,102090.0,102080.0,0.19792476]
[1763047985890,0.012,102090.0,102080.0,0.19792476]
[1763047986112,0.20790557,102090.0,102080.0,0.002]
[1763047986319,0.8640112,102090.0,102080.0,0.002]
[1763047986443,0.8620112,102090.0,102080.0,0.002]
[1763047986663,0.23500451,102090.0,102080.0,0.002]
[1763047987083,0.03909894,102090.0,102080.0,0.19792476]
[1763047987282,0.29405661,102100.0,102080.0,0.19792476]
[1763047987283,0.33344633,102100.0,102080.0,0.19792476]
[1763047987487,0.33344633,102100.0,102090.0,0.19590557]
[1763047987488,0.14665042,102100.0,102090.0,0.19590557]
[1763047987812,0.0193908,102090.0,102080.0,0.27226476]
[1763047988016,0.0203908,102090.0,102080.0,0.19792476]
[1763047988226,0.0203908,102090.0,102080.0,0.94918145]
[1763047988436,0.21529637,102090.0,102080.0,0.002]
[1763047988638,0.24438314,102090.0,102080.0,0.002]
[1763047989251,0.34255229,102090.0,102080.0,0.002]
[1763047990121,0.99609103,102090.0,102080.0,0.002]
[1763047990333,0.38723858,102090.0,102080.0,0.002]
[1763047990531,1.04030826,102090.0,102080.0,0.002]
[1763047990766,0.41330157,102090.0,102080.0,0.002]
[1763047990967,3.33724527,102090.0,102080.0,0.002]
[1763047991185,3.38934131,102090.0,102080.0,1e-08]
[1763047991397,3.38934131,102090.0,102070.0,0.0004]
[1763047991398,2.57320808,102080.0,102070.0,0.0004]
[1763047991605,3.21256326,102080.0,102070.0,0.0004]
[1763047991821,3.23882712,102080.0,102070.0,0.0004]
[1763047992028,3.28224586,102080.0,102070.0,0.0004]
[1763047992240,3.33689656,102080.0,102070.0,0.0004]
[1763047992456,2.62566797,102070.0,102060.0,0.00509655]
[1763047992660,3.2560012,102070.0,102060.0,0.00509655]
[1763047992877,2.62899451,102070.0,102060.0,0.00509655]
[1763047993095,3.2560012,102070.0,102060.0,0.00509655]
[1763047993311,2.58557577,102070.0,102060.0,0.00509655]
[1763047993734,2.54618497,102070.0,102060.0,0.00509655]
[1763047993949,0.87142822,102070.0,102060.0,0.00509655]
[1763047994161,0.19603999,102020.0,102010.0,0.03752]
[1763047994376,0.2160592,102010.0,102000.0,29.97057173]
[1763047994623,2.23799851,102010.0,102000.0,29.94114346]
[1763047994837,0.22511642,102010.0,102000.0,29.94114346]
[1763047995047,0.21511642,102010.0,102000.0,29.94114346]
[1763047995262,1.18511282,102010.0,102000.0,29.94114346]
[1763047995471,1.21156967,102010.0,102000.0,29.94114346]
[1763047995675,1.22143712,102010.0,102000.0,29.94114346]
[1763047995879,1.28673258,102010.0,102000.0,29.94114346]
[1763047996083,1.29073258,102010.0,102000.0,29.94114346]
[1763047996316,1.21556967,102010.0,102000.0,29.94114346]
[1763047996950,1.24166999,102010.0,102000.0,29.94114346]
[1763047997216,3.24166999,102010.0,102000.0,29.94114346]
[1763047997393,3.25863188,102010.0,102000.0,29.94114346]
[1763047997598,3.25863188,102010.0,102000.0,29.94535659]
[1763047997980,2.56210613,102010.0,102000.0,29.94535659]
[1763047998189,2.57915952,102010.0,102000.0,29.94535659]
[1763047998395,0.5530592,102010.0,102000.0,29.94535659]
[1763047998607,1.18006589,102010.0,102000.0,29.94535659]
[1763047998805,1.23391043,102010.0,102000.0,29.94535659]
[1763047998963,2.60690374,102010.0,102000.0,29.94535659]
[1763047999481,3.23391043,102010.0,102000.0,29.94535659]
[1763047999712,2.57761355,102010.0,102000.0,29.94535659]
[1763047999923,2.2300592,102010.0,102000.0,29.94535659]
[1763048000078,0.2300592,102010.0,102000.0,29.94535659]
[1763048000301,0.034,102010.0,102000.0,30.14143502]
[1763048000866,0.014,102010.0,102000.0,30.84278171]
[1763048001242,0.014,102010.0,102000.0,30.14143502]
[1763048001680,0.2300592,102010.0,102000.0,30.14143502]
[1763048001879,0.032,102010.0,102000.0,30.14143502]
[1763048002083,0.012,102010.0,102000.0,30.21577502]
[1763048002289,0.011,102010.0,102000.0,30.84278171]
[1763048002698,0.011,102010.0,102000.0,30.21577502]
[1763048002905,0.011,102010.0,102000.0,30.14143502]
[1763048003261,0.2070592,102010.0,102000.0,30.57236328]
[1763048003520,0.2070592,102010.0,102000.0,29.94535659]
[1763048003728,0.031,102010.0,102000.0,30.14143502]
[1763048003930,0.011,102010.0,102000.0,30.14143502]
[1763048004172,0.2070592,102010.0,102000.0,29.94535659]
[1763048004375,0.2270592,102010.0,102000.0,29.94535659]
[1763048004830,0.1970592,102010.0,102000.0,29.94535659]
[1763048005037,0.21645,102010.0,102000.0,29.94535659]
[1763048005245,0.22645,102010.0,102000.0,29.94535659]
[1763048006377,0.0303908,102010.0,102000.0,29.94535659]
[1763048006605,0.22645,102010.0,102000.0,29.94535659]
[1763048007430,0.23549496,102010.0,102000.0,29.94535659]
[1763048007639,0.0303908,102010.0,102000.0,30.14143502]
[1763048007859,0.0303908,102010.0,102000.0,30.21577502]
[1763048008070,0.21645,102010.0,102000.0,29.94535659]
[1763048008274,0.23645,102010.0,102000.0,29.94535659]
[1763048008693,0.2455065,102010.0,102000.0,29.94535659]
[1763048010314,0.2455065,102010.0,102000.0,30.14143502]
[1763048010490,0.2455065,102010.0,102000.0,29.94535659]
[1763048011697,0.0294473,102010.0,102000.0,30.14143502]
[1763048011913,0.2455065,102010.0,102000.0,29.94535659]
[1763048012372,0.26365941,102010.0,102000.0,29.94535659]
[1763048012581,0.26365941,102010.0,102000.0,30.14143502]
[1763048012783,0.06760021,102010.0,102000.0,30.14143502]
[1763048013203,0.26365941,102010.0,102000.0,30.14143502]
[1763048013424,0.04760021,102010.0,102000.0,30.84199171]
[1763048013654,0.0294473,102010.0,102000.0,30.21498502]
[1763048013863,0.0294473,102010.0,102000.0,30.84199171]
[1763048015349,0.0294473,102010.0,102000.0,31.20841045]
[1763048016343,0.2255065,102010.0,102000.0,30.96891328]
[1763048016544,0.0294473,102010.0,102000.0,31.16499171]
[1763048016958,0.2255065,102010.0,102000.0,30.14143502]
[1763048017388,0.0294473,102010.0,102000.0,30.14143502]
[1763048017588,0.0294473,102010.0,102000.0,30.21498502]
[1763048017920,0.0100565,102010.0,102000.0,31.20841045]
[1763048018121,0.09816915,102050.0,102020.0,0.19601042]
[1763048018324,0.0193908,102040.0,102030.0,0.91289337]
[1763048018545,0.03763171,102040.0,102030.0,0.28588668]
[1763048018695,0.23363327,102040.0,102030.0,0.08988]
[1763048018900,0.25363327,102040.0,102030.0,0.08988]
[1763048019141,0.25363327,102040.0,102030.0,0.23399077]
[1763048019404,0.25363327,102040.0,102030.0,0.03797]
[1763048019613,0.05763171,102040.0,102030.0,0.23399077]
[1763048019827,0.25363327,102040.0,102030.0,0.23399077]
[1763048020049,0.25363327,102040.0,102030.0,0.03797]
[1763048020279,0.25463327,102040.0,102030.0,0.23399077]
[1763048020710,0.19602077,102030.0,102020.0,0.20581241]
[1763048020966,0.23426168,102030.0,102010.0,0.6305792]
[1763048021167,0.01,102020.0,102010.0,0.6305792]
[1763048021399,0.02824091,102020.0,102010.0,0.5570292]
[1763048021617,0.02824091,102020.0,102010.0,0.6089392]
[1763048021827,0.02824091,102020.0,102010.0,1.30949589]
[1763048021947,0.02824091,102020.0,102010.0,1.35291463]
[1763048022156,0.03763171,102020.0,102010.0,1.35291463]
[1763048022508,0.01824091,102020.0,102010.0,1.35291463]
[1763048022677,0.0193908,102030.0,102020.0,0.19703999]
[1763048022846,0.03769273,102030.0,102020.0,0.94950668]
[1763048023311,0.03769273,102030.0,102020.0,0.94850668]
[1763048024393,0.03769273,102030.0,102020.0,0.94950668]
[1763048025059,0.03769273,102030.0,102020.0,0.8224792]
[1763048026939,0.2337135,102030.0,102020.0,0.32249999]
[1763048027172,0.2337135,102030.0,102020.0,0.05291]
[1763048027375,0.2537135,102030.0,102020.0,0.001]
[1763048028243,2.75369271,102030.0,102020.0,0.001]
[1763048028460,0.0193908,102010.0,102000.0,30.13722189]
[1763048028664,0.03769273,102010.0,102000.0,30.7107511]
[1763048030182,0.24290574,102010.0,102000.0,30.6372011]
[1763048030387,0.26390574,102010.0,102000.0,29.94114346]
[1763048030590,0.26390574,102010.0,102000.0,29.94635659]
[1763048030806,0.26290574,102010.0,102000.0,29.94635659]
[1763048031856,0.26290574,102010.0,102000.0,29.94535659]
[1763048032251,0.26490574,102010.0,102000.0,29.94535659]
[1763048032715,0.03115381,102010.0,102000.0,29.94535659]
[1763048032924,0.24721301,102010.0,102000.0,29.94535659]
[1763048033133,0.24521301,102010.0,102000.0,29.94535659]
[1763048033335,0.24621301,102010.0,102000.0,29.94535659]
[1763048033542,0.24921301,102010.0,102000.0,29.94535659]
[1763048033742,0.24821301,102010.0,102000.0,29.94535659]
[1763048034160,0.25021301,102010.0,102000.0,29.94535659]
[1763048034571,2.75019222,102010.0,102000.0,29.94535659]
[1763048034790,2.25021301,102010.0,102000.0,29.94535659]
[1763048035208,0.25021301,102010.0,102000.0,29.94535659]
[1763048035891,0.25021301,102010.0,102000.0,30.14143502]
[1763048036111,0.25021301,102010.0,102000.0,29.94535659]
[1763048037184,0.25021301,102010.0,102000.0,30.14143502]
[1763048037389,0.25021301,102010.0,102000.0,29.94535659]